{"text_format":"1","workbook":"xlsx","n_sheets":18,"sheets":["Tytułowa","Sekcja A","Sekcja B1 i B2","Sekcja B3 i B4","Sekcja C1 ","Sekcja C2 i C3","Sekcja C4","Sekcja C5","Sekcja C6","Sekcja C7","Sekcja C7.2 i C7.3","Sekcja D","Sekcja E1","Sekcja F","Sekcja G","Sekcja H","Zalacznik nr 1","Zalacznik nr 2"],"not_rendered":{"charts":0,"images":5,"macros":1,"external_links":0,"defined_names":52,"comments":3,"pivot_tables":0},"unopened":[],"bounds":{"document_bytes":16777216,"sheet_cells":100000,"rows_first":2000,"rows_last":500,"rows_between":2000,"halvings":0,"cell_chars":16384,"cell_head_chars":4096},"cells_cut":0,"cells_raw":0,"read":"whole","date_system":"1900"}

{"sheet":"Tytułowa","index":0,"n_rows":49,"n_cols":15,"rows_kept":49,"cut":false,"hidden":false,"merged":[[42,2,46,13],[35,2,38,16],[4,3,5,16],[2,14,2,16],[26,4,26,14],[16,1,17,17],[21,1,25,17],[12,4,12,7],[29,1,30,17]]}
[null,null,null,null,null,null,null,null,null,null,"Załącznik nr 1 do wniosku o przyznanie pomocy"]
[]
[null,null,null,null,null,null,null,null,null,null,null,null,null,null,"W-1.1_413_312"]
[]
[null,null,null,"AGENCJA RESTRUKTURYZACJI I MODERNIZACJI ROLNICTWA"]
[]
[]
[]
[]
[]
[]
[]
[]
[]
[]
[]
[null,"Ekonomiczny Plan Operacji"]
[]
[]
[]
[]
[null,"Załącznik do wniosku o przyznanie pomocy w ramach\ndziałania 413 \"Wdrażanie lokalnych strategii rozwoju\" dla operacji, które odpowiadają warunkom pomocy w ramach działania 312 \"Tworzenie i rozwój mikroprzedsiębiorstw\" \nw ramach Programu Rozwoju Obszarów Wiejskich \nna lata 2007 - 2013 \n"]
[]
[]
[]
[]
[]
[]
[]
[null,"znak sprawy                                                                                                                                                                              (wypełnia pracownik OR) "]
[]
[]
[]
[null,null,"Nr Identyfikacyjny Wnioskodawcy"]
[]
[]
[]
[]
[]
[null,null,"Imię i Nazwisko/Nazwa *"]
[]
[]
[null,null,"Ekonomiczny plan operacji sporządzony zostać powinien według wzoru udostępnionego przez Agencję Restrukturyzacji i Modernizacji Rolnictwa. Przed wypełnieniem formularza należy zapoznać się z wytycznymi zawartymi w instrukcji wypełniania ekonomicznego planu operacji."]
[]
[]
[]
[]
[]
[null,null,"* Imię i Nazwisko w przypadku osób fizycznych"]

{"sheet":"Sekcja A","index":1,"n_rows":9,"n_cols":27,"rows_kept":9,"cut":false,"hidden":false,"merged":[[3,1,3,21],[13,1,13,19],[6,13,6,15],[5,1,7,8],[4,1,4,21],[7,11,7,13],[7,17,7,20],[12,1,12,20],[8,9,8,12],[8,13,8,21],[9,13,9,21],[11,13,11,21],[10,9,10,12],[10,13,10,21],[8,1,8,8],[11,1,11,8],[10,1,10,8],[11,9,11,12],[9,1,9,8],[9,9,9,12]]}
[null,null,null,null,null,null,null,null,null,null,null,null,null,null,null,null,null,null,null,null,null,null,null,null,null,null,10]
[null,null,null,null,null,null,null,null,null,null,null,null,null,null,null,null,null,null,null,null,null,null,null,null,null,null,10]
[null,null,null,null,null,null,null,null,null,null,null,null,null,null,null,null,null,null,null,null,null,null,null,null,null,null,1]
[null,"SEKCJA A. CHARAKTERYSTYKA RODZAJU DZIAŁALNOŚCI"]
[null,"A-1. Charakterystyka działalności przedsiębiorstwa "]
[null,"1. Data rejestracji przedsiębiorcy(miesiąc/rok)"]
[]
[null,null,null,null,null,null,null,null,null,null,null,"1.1. Miesiąc",null,null,null,null,null,"1.2. Rok"]
[null,"2. Przedmiot działalności wg kodu PKD",null,null,null,null,null,null,null,"Kod PKD",null,null,null,"Opis kodu PKD"]

{"sheet":"Sekcja B1 i B2","index":2,"n_rows":36,"n_cols":29,"rows_kept":36,"cut":false,"hidden":false,"merged":[[31,15,31,16],[26,17,26,18],[25,17,25,18],[26,11,26,12],[26,13,26,14],[21,5,21,10],[21,11,21,12],[21,13,21,14],[31,17,31,18],[28,15,28,16],[32,5,32,12],[32,13,32,14],[31,5,31,12],[31,13,31,14],[20,5,20,10],[20,11,20,12],[20,13,20,14],[28,5,28,12],[23,5,23,10],[24,11,24,12],[20,15,20,16],[35,1,37,22],[28,1,28,4],[30,5,30,12],[30,13,30,14],[30,15,30,16],[28,17,28,18],[30,17,30,18],[32,15,32,16],[32,17,32,18],[26,5,26,10],[24,15,24,16],[26,15,26,16],[28,13,28,14],[23,15,23,16],[24,5,24,10],[25,5,25,10],[18,17,18,18],[18,11,18,12],[18,13,18,14],[25,15,25,16],[21,15,21,16],[21,17,21,18],[24,17,24,18],[23,11,23,12],[19,11,19,12],[19,13,19,14],[29,13,29,14],[29,15,29,16],[29,5,29,12],[17,15,17,16],[18,5,18,10],[18,15,18,16],[19,5,19,10],[25,11,25,12],[25,13,25,14],[24,13,24,14],[19,15,19,16],[23,17,23,18],[20,17,20,18],[19,17,19,18],[23,13,23,14],[2,1,4,20],[5,1,5,20],[6,1,14,20],[17,11,17,12],[17,13,17,14],[16,1,16,20],[17,19,17,20],[17,17,17,18],[17,1,17,4],[17,5,17,10],[22,17,22,18],[22,5,22,10],[22,11,22,12],[22,13,22,14],[22,15,22,16],[33,5,33,12],[33,13,33,14],[33,15,33,16],[33,17,33,18],[27,5,27,10],[27,11,27,12],[27,13,27,14],[27,15,27,16],[27,17,27,18],[29,17,29,18]]}
[null,null,null,null,null,null,null,null,null,null,null,null,null,null,null,null,null,null,null,null,null,null,null,null,null,null,20,25,30]
[null,null,null,null,null,null,null,null,null,null,null,null,null,null,null,null,null,null,null,null,null,null,null,null,null,null,23,28,34]
[null,"SEKCJA B. CHARAKTERYSTYKA DOTYCHCZASOWEJ DZIAŁALNOŚCI *",null,null,null,null,null,null,null,null,null,null,null,null,null,null,null,null,null,null,null,null,null,null,null,null,1,1,1]
[]
[]
[null,"B-1. Opis dotychczasowej działalności (Charakterystyka prowadzonej działalności, maksymalnie 500 słów)"]
[]
[]
[]
[]
[]
[]
[]
[]
[]
[]
[null,"B-2. Posiadane zaplecze do prowadzenia działalności gospodarczej"]
[null,"Charakterystyka istniejących nieruchomości",null,null,null,"Rodzaj nieruchomości",null,null,null,null,null,"Powierzchnia/Kubatura",null,"Posiadanie zależne",null,"Rok budowy",null,"Stan techniczny",null,"Zaplecze planowanej operacji"]
[null,null,null,null,null,"Grunty",null,null,null,null,null,"ha fizyczne",null,"x",null,"x",null,"x",null,null,"x"]
[null,null,null,null,null,null,null,null,null,null,null,null,null,null,null,"x",null,"x"]
[null,null,null,null,null,null,null,null,null,null,null,null,null,null,null,"x",null,"x"]
[null,null,null,null,null,null,null,null,null,null,null,null,null,null,null,"x",null,"x"]
[null,null,null,null,null,null,null,null,null,null,null,null,null,null,null,"x",null,"x"]
[null,null,null,null,null,"Budynki/budowle",null,null,null,null,null,"m2/m3",null,"x",null,"x",null,"x",null,null,"x"]
[]
[]
[]
[]
[null,"Posiadane maszyny/urządzenia/pojazdy/Inne",null,null,null,"Nazwa i typ maszyny/urządzenia/pojazdu",null,null,null,null,null,null,null,"Posiadanie zależne",null,"Rok produkcji",null,"Stan techniczny",null,null,"Zaplecze planowanej operacji"]
[]
[]
[]
[]
[]
[]
[null,"* Wnioskodawcy rozpoczynający działalność gospodarczą nie wypełniają tabel B-1, B-3 i B-4, wypełniają natomiast tabelę B-2, wg stanu na dzień sporządzania planu operacji. Pozostali wnioskodawcy wypełniają wszystkie punkty tej sekcji, z tym że wnioskodawcy kontynuujący działalność rozpoczętą w roku bieżącym, w tabeli B-4 podają wartości za niepełny rok prowadzenia działalności. "]

{"sheet":"Sekcja B3 i B4","index":3,"n_rows":33,"n_cols":27,"rows_kept":33,"cut":false,"hidden":false,"merged":[[32,1,32,13],[29,6,29,13],[30,1,30,13],[31,1,31,13],[17,1,29,5],[22,6,22,13],[27,6,27,13],[25,6,25,13],[28,6,28,13],[26,6,26,13],[23,19,23,23],[22,14,22,18],[22,19,22,23],[21,19,21,23],[29,14,29,18],[29,19,29,23],[27,14,27,18],[27,19,27,23],[24,19,24,23],[24,14,24,18],[24,6,24,13],[20,6,20,13],[20,14,20,18],[23,6,23,13],[23,14,23,18],[21,6,21,13],[28,14,28,18],[26,14,26,18],[26,19,26,23],[2,1,2,23],[3,2,3,15],[3,16,3,18],[3,19,3,23],[20,19,20,23],[17,19,17,23],[17,6,17,13],[32,14,32,18],[32,19,32,23],[31,19,31,23],[30,14,30,18],[21,14,21,18],[25,19,25,23],[28,19,28,23],[30,19,30,23],[31,14,31,18],[25,14,25,18],[18,19,18,23],[19,14,19,18],[19,19,19,23],[18,14,18,18],[17,14,17,18],[16,6,16,13],[18,6,18,13],[19,6,19,13],[15,6,15,13],[13,19,13,23],[14,14,14,18],[12,1,13,13],[12,14,12,18],[12,19,12,23],[15,19,15,23],[6,2,6,15],[4,2,4,15],[13,14,13,18],[15,14,15,18],[7,2,7,15],[7,16,7,18],[8,2,8,15],[8,16,8,18],[9,2,9,15],[5,2,5,15],[7,19,7,23],[8,19,8,23],[9,16,9,18],[9,19,9,23],[11,1,11,23],[14,1,16,5],[14,6,14,13],[16,14,16,18],[16,19,16,23],[14,19,14,23],[6,19,6,23],[4,16,4,18],[4,19,4,23],[5,16,5,18],[5,19,5,23],[6,16,6,18]]}
[null,null,null,null,null,null,null,null,null,null,null,null,null,null,null,null,null,null,null,null,null,null,null,null,null,null,5]
[null,null,null,null,null,null,null,null,null,null,null,null,null,null,null,null,null,null,null,null,null,null,null,null,null,null,10]
[null,"B-3. Skala produkcji / świadczonych usług/sprzedaży towarów",null,null,null,null,null,null,null,null,null,null,null,null,null,null,null,null,null,null,null,null,null,null,null,null,1]
[null,"Lp.","Produkt / usługa/towar",null,null,null,null,null,null,null,null,null,null,null,null,null,"Jednostka",null,null,"Wiekość produkcji / świadczonych usług/sprzedaży towarów"]
[null,1]
[null,2]
[null,3]
[null,4]
[null,5]
[null,6]
[]
[null,"B-4. Wynik finansowy z działalności dotychczasowej"]
[null,"Wyszczególnienie",null,null,null,null,null,null,null,null,null,null,null,null,"Rok poprzedni",null,null,null,null,"Rok bieżący"]
[null,null,null,null,null,null,null,null,null,null,null,null,null,null,{"$f":"T14-1","v":2012},null,null,null,null,2013]
[null,"I. PRZYCHODY",null,null,null,null,"1. Wpływy ze sprzedaży produktów/świadczonych usług/sprzedaży towarów"]
[null,null,null,null,null,null,"2. Pozostałe przychody"]
[null,null,null,null,null,null,"Razem",null,null,null,null,null,null,null,{"$f":"O15+O16","v":0},null,null,null,null,{"$f":"T15+T16","v":0}]
[null,"II. KOSZTY",null,null,null,null,"1. Koszty rodzajowe, w tym",null,null,null,null,null,null,null,{"$f":"SUM(O19,O20,O21,O22,O23,O24,O25,O26,O27,O28,O29)","v":0},null,null,null,null,{"$f":"SUM(T19,T20,T21,T22,T23,T24,T25,T26,T27,T28,T29)","v":0}]
[null,null,null,null,null,null,"a. Amortyzacja "]
[null,null,null,null,null,null,"b.Zużycie materiałów/surowców"]
[null,null,null,null,null,null,"c. Paliwo"]
[null,null,null,null,null,null,"d.Usługi obce (w tym m.in. naprawy i konserwacje maszyn, budynków, energia el., opał, gaz, woda, ścieki, odpady, telekomunikacja)"]
[null,null,null,null,null,null,"e.Podatki i opłaty, w tym podatek akcyzowy"]
[null,null,null,null,null,null,"f. Zakup towarów"]
[null,null,null,null,null,null,"g.Wynagrodzenia"]
[null,null,null,null,null,null,"h. Ubezpieczenia społeczne i inne świadczenia"]
[null,null,null,null,null,null,"i.Dzierżawy, czynsze i opłaty leasingowe"]
[null,null,null,null,null,null,"j.Ubezpieczenia majątkowe"]
[null,null,null,null,null,null,"k. Pozostałe koszty rodzajowe"]
[null,null,null,null,null,null,"Razem",null,null,null,null,null,null,null,{"$f":"SUM(O19:S29)","v":0},null,null,null,null,{"$f":"SUM(T19:X29)","v":0}]
[null,"III. ZYSK BRUTTO (I-II)",null,null,null,null,null,null,null,null,null,null,null,null,{"$f":"O17-O18","v":0},null,null,null,null,{"$f":"T17-T18","v":0}]
[null,"IV. PODATEK DOCHODOWY"]
[null,"V. ZYSK NETTO (III-IV)",null,null,null,null,null,null,null,null,null,null,null,null,{"$f":"O31-O32","v":0},null,null,null,null,{"$f":"T31-T32","v":0}]

{"sheet":"Sekcja C1 ","index":4,"n_rows":29,"n_cols":20,"rows_kept":29,"cut":false,"hidden":false,"merged":[[28,1,28,23],[2,1,3,23],[10,10,10,23],[16,1,24,9],[17,11,17,22],[18,11,18,22],[21,11,21,13],[21,15,21,17],[21,19,21,22],[4,1,4,23],[27,1,27,16],[27,17,27,21],[11,1,15,9],[19,11,19,22],[20,11,20,22],[24,11,24,15],[24,18,24,22],[24,16,24,17],[22,15,22,17],[23,11,23,15],[5,10,5,23],[6,1,9,9],[6,10,6,23],[7,10,9,10],[8,11,8,19],[7,13,7,23],[9,13,9,23],[5,1,5,9],[23,18,23,22],[22,11,22,14],[11,10,11,13],[11,14,11,23],[12,14,15,23],[12,10,15,13],[22,19,22,22]]}
[]
[]
[null,"SEKCJA C. PLANOWANA OPERACJA"]
[]
[null,"C-1. Charakterystyka planowanej operacji"]
[null,"1. Tytuł i opis operacji (maksymalnie 500 słów)"]
[null,"2. Planowana operacja dotycząca działalności *"]
[null,null,null,null,null,null,null,null,null,null,null,null,null,"2.1. Rozwijanej"]
[]
[null,null,null,null,null,null,null,null,null,null,null,null,null,"2.2. Podejmowanej"]
[]
[null,"3. Przedmiot działalności wg kodu PKD",null,null,null,null,null,null,null,null,"Kod PKD",null,null,null,"Opis kodu PKD"]
[]
[]
[]
[]
[null,"4. Lokalizacja (miejsce realizacji) operacji"]
[]
[null,null,null,null,null,null,null,null,null,null,null,"5.1. Ulica i nr domu (posesji)"]
[]
[null,null,null,null,null,null,null,null,null,null,null,"5.2. Miejscowość"]
[]
[null,null,null,null,null,null,null,null,null,null,null,"5.3. Kod pocztowy",null,null,null,"5.4. Poczta",null,null,null,"5.5. Gmina"]
[]
[null,null,null,null,null,null,null,null,null,null,null,"5.6. Powiat",null,null,null,null,null,null,"5.7. Województwo"]
[]
[]
[]
[null,"* należy określić poprzez wstawienie  \"x\" w jednym właściwym polu, jakiej działalności dotyczy planowana operacja."]

{"sheet":"Sekcja C2 i C3","index":5,"n_rows":19,"n_cols":3,"rows_kept":19,"cut":false,"hidden":false,"merged":[[14,2,14,24],[19,2,19,24],[15,2,15,24],[16,2,16,24],[17,2,17,24],[18,2,18,24],[12,2,12,24],[13,2,13,24],[6,2,6,24],[7,2,7,24],[8,2,8,24],[9,2,9,24],[10,2,10,24],[11,2,11,24]]}
[]
[]
[]
[]
[]
[]
[null,null,"C-2. Opis operacji"]
[null,null,"C.2.1. Organizacja działaności produkcyjnej/usługowej/handlowej"]
[]
[null,null,"C.2.2. Inne uwarunkowania realizacji operacji"]
[]
[null,null,"C-3. Plan marketingowy"]
[null,null,"C.3.1. Charakterystyka cech produktów/usług/towarów objętych operacją"]
[]
[null,null,"C.3.2. Czy i w jakim stopniu wprowadzone produkty/usługi/towary są czymś nowym dla danego obszaru/sektora ?"]
[]
[null,null,"C.3.3. Rodzaj rynku zbytu produktów/świadczonych usług/towarów, czy podpisano umowy/kontrakty z przyszłymi odbiorcami produktów/usług/towarów"]
[]
[null,null,"C.3.4. Sposób wyznaczania ceny dla produktów/usług/towarów"]

{"sheet":"Sekcja C4","index":6,"n_rows":27,"n_cols":32,"rows_kept":27,"cut":false,"hidden":false,"merged":[[21,16,21,17],[21,18,21,19],[21,2,21,8],[21,10,21,11],[21,12,21,13],[21,14,21,15],[22,2,22,8],[22,10,22,11],[22,12,22,13],[22,14,22,15],[22,16,22,17],[22,18,22,19],[22,20,22,21],[22,22,22,23],[21,20,21,21],[21,22,21,23],[22,24,22,25],[22,26,22,27],[21,24,21,25],[21,26,21,27],[20,10,20,11],[20,12,20,13],[20,14,20,15],[19,2,19,8],[19,10,19,11],[19,12,19,13],[19,14,19,15],[19,22,19,23],[19,24,19,25],[19,26,19,27],[20,24,20,25],[20,26,20,27],[20,20,20,21],[20,22,20,23],[8,18,8,19],[19,16,19,17],[19,18,19,19],[20,16,20,17],[20,18,20,19],[19,20,19,21],[18,20,18,21],[7,22,7,23],[8,12,8,13],[8,14,8,15],[7,24,7,25],[7,26,7,27],[8,24,8,25],[8,26,8,27],[8,20,8,21],[8,22,8,23],[8,16,8,17],[6,24,6,25],[8,2,8,8],[8,10,8,11],[6,26,6,27],[7,2,7,8],[7,10,7,11],[7,12,7,13],[7,14,7,15],[7,16,7,17],[7,18,7,19],[6,2,6,8],[6,10,6,11],[6,12,6,13],[6,14,6,15],[6,20,6,21],[6,22,6,23],[6,16,6,17],[6,18,6,19],[17,24,17,25],[17,14,17,15],[17,16,17,17],[17,18,17,19],[17,20,17,21],[9,22,9,23],[16,22,16,27],[10,16,10,17],[9,24,9,25],[16,9,17,9],[16,10,16,15],[16,16,16,21],[10,12,10,13],[10,14,10,15],[9,10,9,11],[9,12,9,13],[9,14,9,15],[10,18,10,19],[17,10,17,11],[12,2,12,7],[4,26,4,27],[5,18,5,19],[5,20,5,21],[5,22,5,23],[5,10,5,11],[9,26,9,27],[9,16,9,17],[9,18,9,19],[9,20,9,21],[17,12,17,13],[5,12,5,13],[11,1,11,27],[10,24,10,25],[10,20,10,21],[10,1,10,8],[10,10,10,11],[9,2,9,8],[10,22,10,23],[7,20,7,21],[2,1,2,27],[3,1,4,1],[3,2,4,8],[3,9,4,9],[3,10,3,15],[4,16,4,17],[4,10,4,11],[4,12,4,13],[4,20,4,21],[4,22,4,23],[3,22,3,27],[4,14,4,15],[3,16,3,21],[17,26,17,27],[4,18,4,19],[5,24,5,25],[5,26,5,27],[10,26,10,27],[17,22,17,23],[4,24,4,25],[5,16,5,17],[23,20,23,21],[15,1,15,27],[16,1,17,1],[16,2,17,8],[13,1,13,27],[18,22,18,23],[18,24,18,25],[18,26,18,27],[5,2,5,8],[1,1,1,27],[27,1,27,27],[23,22,23,23],[23,24,23,25],[23,26,23,27],[26,1,26,27],[23,14,23,15],[23,16,23,17],[23,18,23,19],[5,14,5,15],[18,14,18,15],[18,18,18,19],[23,1,23,8],[23,10,23,11],[18,2,18,8],[18,12,18,13],[23,12,23,13],[18,10,18,11],[18,16,18,17],[20,2,20,8]]}
[null,null,null,null,null,null,null,null,null,null,null,null,null,null,null,null,null,null,null,null,null,null,null,null,null,null,null,null,null,null,6,19]
[null,"C-4 Wielkość i wartość planowanej produkcji",null,null,null,null,null,null,null,null,null,null,null,null,null,null,null,null,null,null,null,null,null,null,null,null,null,null,null,null,10,23]
[null,"C.4.1. Prognoza wielkości i wartości produkcji/świadczonych usług/sprzedaży towarów",null,null,null,null,null,null,null,null,null,null,null,null,null,null,null,null,null,null,null,null,null,null,null,null,null,null,null,null,2,2]
[null,"Lp.","Produkt/Usługa/Towar",null,null,null,null,null,null,"Jednostka",{"$f":"'Sekcja B3 i B4'!T14","v":2013},null,null,null,null,null,{"$f":"K4+1","v":2014},null,null,null,null,null,{"$f":"Q4+1","v":2015}]
[null,null,null,null,null,null,null,null,null,null,"Ilość",null,"Cena netto",null,"Wartość  w cenach netto",null,"Ilość",null,"Cena netto",null,"Wartość  w cenach netto",null,"Ilość",null,"Cena netto",null,"Wartość  w cenach netto"]
[null,1,null,null,null,null,null,null,null,null,null,null,null,null,{"$f":"ROUND(K6*M6,2)","v":0},null,null,null,null,null,{"$f":"ROUND(Q6*S6,2)","v":0},null,null,null,null,null,{"$f":"ROUND(W6*Y6,2)","v":0}]
[null,2,null,null,null,null,null,null,null,null,null,null,null,null,{"$f":"ROUND(K7*M7,2)","v":0},null,null,null,null,null,{"$f":"ROUND(Q7*S7,2)","v":0},null,null,null,null,null,{"$f":"ROUND(W7*Y7,2)","v":0}]
[null,3,null,null,null,null,null,null,null,null,null,null,null,null,{"$f":"ROUND(K8*M8,2)","v":0},null,null,null,null,null,{"$f":"ROUND(Q8*S8,2)","v":0},null,null,null,null,null,{"$f":"ROUND(W8*Y8,2)","v":0}]
[null,4,null,null,null,null,null,null,null,null,null,null,null,null,{"$f":"ROUND(K9*M9,2)","v":0},null,null,null,null,null,{"$f":"ROUND(Q9*S9,2)","v":0},null,null,null,null,null,{"$f":"ROUND(W9*Y9,2)","v":0}]
[null,5,null,null,null,null,null,null,null,null,null,null,null,null,{"$f":"ROUND(K10*M10,2)","v":0},null,null,null,null,null,{"$f":"ROUND(Q10*S10,2)","v":0},null,null,null,null,null,{"$f":"ROUND(W10*Y10,2)","v":0}]
[null,"Razem",null,null,null,null,null,null,null,"X","X",null,"X",null,{"$f":"SUM(O6:P10)","v":0},null,"X",null,"X",null,{"$f":"SUM(U6:V10)","v":0},null,"X",null,"X",null,{"$f":"SUM(AA6:AB10)","v":0}]
[]
[]
[]
[]
[null,"C.4.1. Prognoza wielkości i wartości produkcji/świadczonych usług/sprzedaży towarów cd."]
[null,"Lp.","Produkt/Usługa/Towar",null,null,null,null,null,null,"Jednostka",{"$f":"W4+1","v":2016},null,null,null,null,null,{"$f":"K17+1","v":2017},null,null,null,null,null,{"$f":"Q17+1","v":2018}]
[null,null,null,null,null,null,null,null,null,null,"Ilość",null,"Cena netto",null,"Wartość  w cenach netto",null,"Ilość",null,"Cena netto",null,"Wartość w cenach netto",null,"Ilość",null,"Cena netto",null,"Wartość w cenach netto"]
[null,1,null,null,null,null,null,null,null,null,null,null,null,null,{"$f":"ROUND(K19*M19,2)","v":0},null,null,null,null,null,{"$f":"ROUND(Q19*S19,2)","v":0},null,null,null,null,null,{"$f":"ROUND(W19*Y19,2)","v":0}]
[null,2,null,null,null,null,null,null,null,null,null,null,null,null,{"$f":"ROUND(K20*M20,2)","v":0},null,null,null,null,null,{"$f":"ROUND(Q20*S20,2)","v":0},null,null,null,null,null,{"$f":"ROUND(W20*Y20,2)","v":0}]
[null,3,null,null,null,null,null,null,null,null,null,null,null,null,{"$f":"ROUND(K21*M21,2)","v":0},null,null,null,null,null,{"$f":"ROUND(Q21*S21,2)","v":0},null,null,null,null,null,{"$f":"ROUND(W21*Y21,2)","v":0}]
[null,4,null,null,null,null,null,null,null,null,null,null,null,null,{"$f":"ROUND(K22*M22,2)","v":0},null,null,null,null,null,{"$f":"ROUND(Q22*S22,2)","v":0},null,null,null,null,null,{"$f":"ROUND(W22*Y22,2)","v":0}]
[null,5,null,null,null,null,null,null,null,null,null,null,null,null,{"$f":"ROUND(K23*M23,2)","v":0},null,null,null,null,null,{"$f":"ROUND(Q23*S23,2)","v":0},null,null,null,null,null,{"$f":"ROUND(W23*Y23,2)","v":0}]
[null,"Razem",null,null,null,null,null,null,null,"X","X",null,"X",null,{"$f":"SUM(O19:P23)","v":0},null,"X",null,"X",null,{"$f":"SUM(U19:V23)","v":0},null,"X",null,"X",null,{"$f":"SUM(AA19:AB23)","v":0}]
[]
[]
[null,"C.4.2. Uzasadnienie planowanej wielkości produkcji/świadczonych usług/sprzedaży towarów (np. według wydajności maszyny/urządzenia, z uwzględnieniem ewentualnej wielozmianowości produkcji, dostępności surowców, na podstawie umów/kontraktów etc.)"]

{"sheet":"Sekcja C5","index":7,"n_rows":27,"n_cols":43,"rows_kept":27,"cut":false,"hidden":false,"merged":[[2,1,2,27],[7,2,7,16],[7,17,7,20],[3,1,4,1],[3,22,3,27],[6,17,6,20],[11,1,12,1],[5,2,5,16],[11,2,12,16],[10,17,10,20],[10,1,10,16],[8,2,8,16],[21,17,21,20],[14,17,14,20],[8,17,8,20],[9,2,9,16],[9,17,9,20],[19,17,19,20],[17,2,18,16],[14,2,14,16],[13,2,13,16],[23,17,23,20],[23,1,23,16],[15,17,15,20],[15,2,15,16],[20,2,20,16],[22,17,22,20],[20,17,20,20],[22,1,22,16],[21,2,21,16],[16,1,16,16],[27,1,28,27],[17,1,18,1],[3,17,4,20],[3,2,4,16],[5,17,5,20],[16,17,16,20],[19,2,19,16],[13,17,13,20],[6,2,6,16],[26,1,26,27]]}
[null,null,null,null,null,null,null,null,null,null,null,null,null,null,null,null,null,null,null,null,null,null,null,null,null,null,null,null,null,null,null,14,22,null,null,null,null,null,null,null,6,14,20]
[null,null,null,null,null,null,null,null,null,null,null,null,null,null,null,null,null,null,null,null,null,null,null,null,null,null,null,null,null,null,null,null,null,null,null,null,null,null,null,null,10,16,22]
[null,"C-5 Koszty operacji",null,null,null,null,null,null,null,null,null,null,null,null,null,null,null,null,null,null,null,null,null,null,null,null,null,null,null,null,null,null,null,null,null,null,null,null,null,null,2,2,2]
[null,"Pozycja zestawienia","Koszty inwestycyjne nie objęte leasingiem (Ki)",null,null,null,null,null,null,null,null,null,null,null,null,null,null,"Wartość  PLN*",null,null,null,null,"Planowany rok poniesienia kosztu"]
[null,null,null,null,null,null,null,null,null,null,null,null,null,null,null,null,null,null,null,null,null,null,{"$f":"'Sekcja C4'!K4","v":2013},{"$f":"'Sekcja C4'!Q4","v":2014},{"$f":"'Sekcja C4'!W4","v":2015},{"$f":"'Sekcja C4'!K17","v":2016},{"$f":"'Sekcja C4'!Q17","v":2017},{"$f":"'Sekcja C4'!W17","v":2018},null,null,null,null,"lata amortyzacji",{"$f":"IF(TYPE(W5)=1,W5-$W$5+1,0)","v":1},2,3,4,5,6]
[null,null,null,null,null,null,null,null,null,null,null,null,null,null,null,null,null,{"$f":"SUM(W6:AB6)","v":0},null,null,null,null,null,null,null,null,null,null,null,null,null,null,"kwota inwestycji",{"$f":"IF(AH5>0,W24-W23,0)","v":0},0,0,0,0,0]
[null,null,null,null,null,null,null,null,null,null,null,null,null,null,null,null,null,{"$f":"SUM(W7:AB7)","v":0},null,null,null,null,null,null,null,null,null,null,null,null,null,null,"kwota amortyzacji",{"$f":"IF(#REF!>0,#REF!*#REF!*8%,0)","v":{"$error":"#REF!"}},{"$f":"IF(#REF!>0,#REF!*#REF!*8%,0)","v":{"$error":"#REF!"}},{"$f":"IF(#REF!>0,#REF!*#REF!*8%,0)","v":{"$error":"#REF!"}},{"$f":"IF(#REF!>0,#REF!*#REF!*8%,0)","v":{"$error":"#REF!"}},{"$f":"IF(#REF!>0,#REF!*#REF!*8%,0)","v":{"$error":"#REF!"}},{"$f":"IF(#REF!>0,#REF!*#REF!*8%,0)","v":{"$error":"#REF!"}}]
[null,null,null,null,null,null,null,null,null,null,null,null,null,null,null,null,null,{"$f":"SUM(W8:AB8)","v":0},null,null,null,null,null,null,null,null,null,null,null,null,null,null,"kwota amortyzacji",{"$f":"IF(#REF!>0,#REF!*#REF!*8%,0)","v":{"$error":"#REF!"}},{"$f":"IF(#REF!>0,#REF!*#REF!*8%,0)","v":{"$error":"#REF!"}},{"$f":"IF(#REF!>0,#REF!*#REF!*8%,0)","v":{"$error":"#REF!"}},{"$f":"IF(#REF!>0,#REF!*#REF!*8%,0)","v":{"$error":"#REF!"}},{"$f":"IF(#REF!>0,#REF!*#REF!*8%,0)","v":{"$error":"#REF!"}},{"$f":"IF(#REF!>0,#REF!*#REF!*8%,0)","v":{"$error":"#REF!"}}]
[null,null,null,null,null,null,null,null,null,null,null,null,null,null,null,null,null,{"$f":"SUM(W9:AB9)","v":0},null,null,null,null,null,null,null,null,null,null,null,null,null,null,"kwota amortyzacji",{"$f":"IF(#REF!>0,#REF!*#REF!*8%,0)","v":{"$error":"#REF!"}},{"$f":"IF(#REF!>0,#REF!*#REF!*8%,0)","v":{"$error":"#REF!"}},{"$f":"IF(#REF!>0,#REF!*#REF!*8%,0)","v":{"$error":"#REF!"}},{"$f":"IF(#REF!>0,#REF!*#REF!*8%,0)","v":{"$error":"#REF!"}},{"$f":"IF(#REF!>0,#REF!*#REF!*8%,0)","v":{"$error":"#REF!"}},{"$f":"IF(#REF!>0,#REF!*#REF!*8%,0)","v":{"$error":"#REF!"}}]
[null,null,null,null,null,null,null,null,null,null,null,null,null,null,null,null,null,{"$f":"SUM(W10:AB10)","v":0},null,null,null,null,null,null,null,null,null,null,null,null,null,null,"kwota amortyzacji",{"$f":"IF(#REF!>0,#REF!*#REF!*8%,0)","v":{"$error":"#REF!"}},{"$f":"IF(#REF!>0,#REF!*#REF!*8%,0)","v":{"$error":"#REF!"}},{"$f":"IF(#REF!>0,#REF!*#REF!*8%,0)","v":{"$error":"#REF!"}},{"$f":"IF(#REF!>0,#REF!*#REF!*8%,0)","v":{"$error":"#REF!"}},{"$f":"IF(#REF!>0,#REF!*#REF!*8%,0)","v":{"$error":"#REF!"}},{"$f":"IF(#REF!>0,#REF!*#REF!*8%,0)","v":{"$error":"#REF!"}}]
[null,"Razem",null,null,null,null,null,null,null,null,null,null,null,null,null,null,null,{"$f":"SUM(R6:U10)","v":0},null,null,null,null,{"$f":"SUM(W6:W10)","v":0},0,0,0,0,0]
[null,"Pozycja zestawienia","Koszty inwestycyjne objęte leasingiem (Kl)"]
[]
[null,null,null,null,null,null,null,null,null,null,null,null,null,null,null,null,null,{"$f":"SUM(W14:AB14)","v":0}]
[null,null,null,null,null,null,null,null,null,null,null,null,null,null,null,null,null,{"$f":"SUM(W15:AB15)","v":0}]
[null,null,null,null,null,null,null,null,null,null,null,null,null,null,null,null,null,{"$f":"SUM(W16:AB16)","v":0}]
[null,"Razem",null,null,null,null,null,null,null,null,null,null,null,null,null,null,null,{"$f":"SUM(R14:U16)","v":0},null,null,null,null,{"$f":"SUM(W14:W16)","v":0},0,0,0,0,0]
[null,"Pozycja zestawienia","Koszty ogólne (Ko)"]
[]
[null,null,null,null,null,null,null,null,null,null,null,null,null,null,null,null,null,{"$f":"SUM(W20,X20,Y20,Z20,AB20)","v":0}]
[null,null,null,null,null,null,null,null,null,null,null,null,null,null,null,null,null,{"$f":"SUM(W21,X21,Y21,Z21,AB21)","v":0}]
[null,null,null,null,null,null,null,null,null,null,null,null,null,null,null,null,null,{"$f":"SUM(W22,X22,Y22,Z22,AB22)","v":0}]
[null,"Razem",null,null,null,null,null,null,null,null,null,null,null,null,null,null,null,{"$f":"SUM(R20:U22)","v":0},null,null,null,null,{"$f":"SUM(W20:W22)","v":0},0,0,0,0,0]
[null,"Suma kosztów kwalifikowalnych operacji (Ki+Kl+Ko)",null,null,null,null,null,null,null,null,null,null,null,null,null,null,null,{"$f":"SUM(R23,R17,R11)","v":0},null,null,null,null,{"$f":"SUM(W11+W17+W23)","v":0},0,0,0,0,0]
[]
[]
[null,"* w wartościach netto (bez VAT), zgodnie z zestawieniem rzeczowo-finansowym operacji"]

{"sheet":"Sekcja C6","index":8,"n_rows":21,"n_cols":256,"rows_kept":21,"cut":false,"hidden":false,"merged":[[20,1,20,6],[20,7,20,8],[17,5,17,6],[18,5,18,6],[17,2,17,3],[18,2,18,3],[18,7,18,8],[19,2,19,3],[19,5,19,6],[19,7,19,8],[1,1,1,8],[5,2,6,2],[5,3,6,3],[3,1,3,8],[4,1,4,8],[5,4,6,4],[2,1,2,8],[5,1,6,1],[5,7,6,8],[5,5,6,6],[7,5,7,6],[17,7,17,8],[15,7,16,8],[15,5,16,6],[7,7,7,8],[14,1,14,8],[15,1,16,1],[15,4,16,4],[15,2,16,3],[12,1,12,8],[10,7,10,8],[10,1,10,6],[11,1,11,8],[9,5,9,6],[9,7,9,8],[8,5,8,6],[8,7,8,8]]}
[null,null,null,null,null,null,null,null,null,null,null,null,null,null,null,8,null,null,null,null,null,null,null,null,null,null,null,null,null,null,null,null,null,null,null,null,null,null,null,null,null,null,null,null,null,null,null,null,null,null,null,null,null,null,null,null,null,null,null,null,null,null,null,null,null,null,null,null,null,null,null,null,null,null,null,null,null,null,null,null,null,null,null,null,null,null,null,null,null,null,null,null,null,null,null,null,null,null,null,null,null,null,null,null,null,null,null,null,null,null,null,null,null,null,null,null,null,null,null,null,null,null,null,null,null,null,null,null,null,null,null,null,null,null,null,null,null,null,null,null,null,null,null,null,null,null,null,null,null,null,null,null,null,null,null,null,null,null,null,null,null,null,null,null,null,null,null,null,null,null,null,null,null,null,null,null,null,null,null,null,null,null,null,null,null,null,null,null,null,null,null,null,null,null,null,null,null,null,null,null,null,null,null,null,null,null,null,null,null,null,null,null,null,null,null,null,null,null,null,null,null,null,null,null,null,null,null,null,null,null,null,null,null,null,null,null,null,null,null,null,null,null,null,null,null,null,null,null,null,null,null,null,null,null,null,2013]
[null,"C-6. Zakres rzeczowy operacji.",null,null,null,null,null,null,null,null,null,null,null,null,null,10,null,20,null,null,null,null,null,null,null,null,null,null,null,null,null,null,null,null,null,null,null,null,null,null,null,null,null,null,null,null,null,null,null,null,null,null,null,null,null,null,null,null,null,null,null,null,null,null,null,null,null,null,null,null,null,null,null,null,null,null,null,null,null,null,null,null,null,null,null,null,null,null,null,null,null,null,null,null,null,null,null,null,null,null,null,null,null,null,null,null,null,null,null,null,null,null,null,null,null,null,null,null,null,null,null,null,null,null,null,null,null,null,null,null,null,null,null,null,null,null,null,null,null,null,null,null,null,null,null,null,null,null,null,null,null,null,null,null,null,null,null,null,null,null,null,null,null,null,null,null,null,null,null,null,null,null,null,null,null,null,null,null,null,null,null,null,null,null,null,null,null,null,null,null,null,null,null,null,null,null,null,null,null,null,null,null,null,null,null,null,null,null,null,null,null,null,null,null,null,null,null,null,null,null,null,null,null,null,null,null,null,null,null,null,null,null,null,null,null,null,null,null,null,null,null,null,null,null,null,null,null,null,null,null,null,null,null,null,null,2014]
[null,"C-6.1. Wpływ poszczególnych elementów zakresu rzeczowego operacji na zakładany poziom sprzedaży, zatrudnienia i cele operacji",null,null,null,null,null,null,null,null,null,null,null,null,null,2,null,null,null,null,null,null,null,null,null,null,null,null,null,null,null,null,null,null,null,null,null,null,null,null,null,null,null,null,null,null,null,null,null,null,null,null,null,null,null,null,null,null,null,null,null,null,null,null,null,null,null,null,null,null,null,null,null,null,null,null,null,null,null,null,null,null,null,null,null,null,null,null,null,null,null,null,null,null,null,null,null,null,null,null,null,null,null,null,null,null,null,null,null,null,null,null,null,null,null,null,null,null,null,null,null,null,null,null,null,null,null,null,null,null,null,null,null,null,null,null,null,null,null,null,null,null,null,null,null,null,null,null,null,null,null,null,null,null,null,null,null,null,null,null,null,null,null,null,null,null,null,null,null,null,null,null,null,null,null,null,null,null,null,null,null,null,null,null,null,null,null,null,null,null,null,null,null,null,null,null,null,null,null,null,null,null,null,null,null,null,null,null,null,null,null,null,null,null,null,null,null,null,null,null,null,null,null,null,null,null,null,null,null,null,null,null,null,null,null,null,null,null,null,null,null,null,null,null,null,null,null,null,null,null,null,null,null,null,null,2015]
[null,null,null,null,null,null,null,null,null,null,null,null,null,null,null,null,null,null,null,null,null,null,null,null,null,null,null,null,null,null,null,null,null,null,null,null,null,null,null,null,null,null,null,null,null,null,null,null,null,null,null,null,null,null,null,null,null,null,null,null,null,null,null,null,null,null,null,null,null,null,null,null,null,null,null,null,null,null,null,null,null,null,null,null,null,null,null,null,null,null,null,null,null,null,null,null,null,null,null,null,null,null,null,null,null,null,null,null,null,null,null,null,null,null,null,null,null,null,null,null,null,null,null,null,null,null,null,null,null,null,null,null,null,null,null,null,null,null,null,null,null,null,null,null,null,null,null,null,null,null,null,null,null,null,null,null,null,null,null,null,null,null,null,null,null,null,null,null,null,null,null,null,null,null,null,null,null,null,null,null,null,null,null,null,null,null,null,null,null,null,null,null,null,null,null,null,null,null,null,null,null,null,null,null,null,null,null,null,null,null,null,null,null,null,null,null,null,null,null,null,null,null,null,null,null,null,null,null,null,null,null,null,null,null,null,null,null,null,null,null,null,null,null,null,null,null,null,null,null,null,null,null,null,null,null,2016]
[null,"C-6.2. Zestawienie zakresu rzeczowego operacji (opis zadań)",null,null,null,null,null,null,null,null,null,null,null,null,null,null,null,null,null,null,null,null,null,null,null,null,null,null,null,null,null,null,null,null,null,null,null,null,null,null,null,null,null,null,null,null,null,null,null,null,null,null,null,null,null,null,null,null,null,null,null,null,null,null,null,null,null,null,null,null,null,null,null,null,null,null,null,null,null,null,null,null,null,null,null,null,null,null,null,null,null,null,null,null,null,null,null,null,null,null,null,null,null,null,null,null,null,null,null,null,null,null,null,null,null,null,null,null,null,null,null,null,null,null,null,null,null,null,null,null,null,null,null,null,null,null,null,null,null,null,null,null,null,null,null,null,null,null,null,null,null,null,null,null,null,null,null,null,null,null,null,null,null,null,null,null,null,null,null,null,null,null,null,null,null,null,null,null,null,null,null,null,null,null,null,null,null,null,null,null,null,null,null,null,null,null,null,null,null,null,null,null,null,null,null,null,null,null,null,null,null,null,null,null,null,null,null,null,null,null,null,null,null,null,null,null,null,null,null,null,null,null,null,null,null,null,null,null,null,null,null,null,null,null,null,null,null,null,null,null,null,null,null,null,null,2017]
[null,"Pozycja zestawienia","Nazwa dostawcy","Marka, typ lub rodzaj","Parametry techniczne (moc, wydajność itp.)","Planowany rok poniesienia kosztu",null,"Wartość zadania [wybranej oferty netto w (zł)]",null,null,null,null,null,null,null,null,null,null,null,null,null,null,null,null,null,null,null,null,null,null,null,null,null,null,null,null,null,null,null,null,null,null,null,null,null,null,null,null,null,null,null,null,null,null,null,null,null,null,null,null,null,null,null,null,null,null,null,null,null,null,null,null,null,null,null,null,null,null,null,null,null,null,null,null,null,null,null,null,null,null,null,null,null,null,null,null,null,null,null,null,null,null,null,null,null,null,null,null,null,null,null,null,null,null,null,null,null,null,null,null,null,null,null,null,null,null,null,null,null,null,null,null,null,null,null,null,null,null,null,null,null,null,null,null,null,null,null,null,null,null,null,null,null,null,null,null,null,null,null,null,null,null,null,null,null,null,null,null,null,null,null,null,null,null,null,null,null,null,null,null,null,null,null,null,null,null,null,null,null,null,null,null,null,null,null,null,null,null,null,null,null,null,null,null,null,null,null,null,null,null,null,null,null,null,null,null,null,null,null,null,null,null,null,null,null,null,null,null,null,null,null,null,null,null,null,null,null,null,null,null,null,null,null,null,null,null,null,null,null,null,null,null,null,null,null,2018]
[]
[]
[]
[]
[null,"RAZEM",null,null,null,null,null,{"$f":"SUM(H8:I10)","v":0}]
[null,"C-6.3. Uzasadnienie wyboru oferty"]
[]
[]
[null,"C-6.4. Zestawienie zakresu towarzyszącego operacji - koszty niekwalifikowalne "]
[null,"Lp","Nazwa zadania",null,"Parametry techniczne (m2, m3, moc, wydajność itp.)","Planowany rok poniesienia kosztu",null,"Wartość zadania [kwota netto w (zł)]"]
[]
[null,null,null,null,null,2013]
[null,null,null,null,null,2013]
[null,null,null,null,null,2013]
[null,"RAZEM",null,null,null,null,null,{"$f":"SUM(H18:I20)","v":0}]

{"sheet":"Sekcja C7","index":9,"n_rows":11,"n_cols":12,"rows_kept":11,"cut":false,"hidden":false,"merged":[[1,1,1,13],[3,11,4,13],[2,8,2,10],[2,11,2,13],[3,8,4,10],[3,7,4,7],[2,1,2,7],[3,1,4,6],[8,8,8,10],[6,8,6,10],[8,11,8,13],[9,1,9,6],[9,11,9,13],[10,8,10,10],[10,11,10,13],[9,8,9,10],[10,1,10,7],[8,2,8,6],[7,7,8,7],[5,1,5,6],[6,2,6,6],[7,11,7,13],[7,2,7,6],[7,8,7,10],[6,11,6,13],[5,7,6,7],[5,11,5,13],[5,8,5,10]]}
[]
[null,"C-7. Projekcja finansowa"]
[null,"C-7.1 Żródła finansowania operacji",null,null,null,null,null,null,"Kwota brutto",null,null,"Struktura %"]
[null,"1. Kredyty, pożyczki",null,null,null,null,null,null,{"$f":"'Sekcja C7.2 i C7.3'!K11","v":0},null,null,{"$f":"IF(I11>0,I4/$I$11,0)","v":0}]
[]
[null,"2. Środki własne, w tym"]
[null,null,"a. Gotówka na rachunku bankowym",null,null,null,null,null,0,null,null,{"$f":"IF(I11>0,I7/$I$11,0)","v":0}]
[null,null,"b. Lokaty terminowe i papiery wartościowe",null,null,null,null,null,0,null,null,{"$f":"IF(I11>0,I8/$I$11,0)","v":0}]
[null,null,"c. Planowane nadwyżki finansowe w okresie realizacji inwestycji pochodzące z bieżącej działalności gospodarczej",null,null,null,null,null,0,null,null,{"$f":"IF(I11>0,I9/$I$11,0)","v":0}]
[null,"3. Leasing",null,null,null,null,null,null,{"$f":"'Sekcja C7.2 i C7.3'!N31","v":0},null,null,{"$f":"IF(I11>0,I10/$I$11,0)","v":0}]
[null,"Razem",null,null,null,null,null,null,{"$f":"SUM(I4:K10)","v":0},null,null,1]

{"sheet":"Sekcja C7.2 i C7.3","index":10,"n_rows":38,"n_cols":23,"rows_kept":38,"cut":false,"hidden":false,"merged":[[33,10,33,11],[29,11,29,12],[9,2,9,7],[24,1,27,1],[24,2,27,5],[12,1,14,1],[14,4,14,5],[22,1,23,15],[32,12,32,13],[17,2,17,3],[28,13,28,15],[13,14,13,15],[24,6,27,10],[16,2,16,3],[16,4,16,5],[15,4,15,5],[15,2,15,3],[29,2,29,5],[32,10,32,11],[29,6,29,10],[13,8,13,9],[14,2,14,3],[28,2,28,5],[30,13,30,15],[33,14,33,15],[28,6,28,10],[33,8,33,9],[30,1,30,12],[33,12,33,13],[32,1,34,1],[32,8,32,9],[28,11,28,12],[33,2,33,5],[34,4,34,5],[35,2,35,3],[36,4,36,5],[35,4,35,5],[29,13,29,15],[24,13,27,15],[24,11,27,12],[33,6,33,7],[31,1,31,15],[32,14,32,15],[2,1,3,17],[11,1,11,17],[4,2,7,7],[8,2,8,7],[4,11,5,17],[37,2,37,3],[37,4,37,5],[32,2,32,5],[32,6,32,7],[34,2,34,3],[13,6,13,7],[4,1,7,1],[6,15,7,15],[12,10,12,11],[13,10,13,11],[12,12,12,13],[13,12,13,13],[4,10,7,10],[12,2,13,5],[12,6,12,7],[6,14,7,14],[10,8,10,9],[6,11,7,11],[6,12,7,12],[6,13,7,13],[36,2,36,3],[12,8,12,9],[6,17,7,17],[17,4,17,5],[12,16,12,17],[6,16,7,16],[4,8,7,8],[4,9,7,9],[13,16,13,17],[12,14,12,15]]}
[null,null,null,null,null,null,null,null,null,null,null,null,null,null,null,null,null,null,null,9,16,29,36]
[null,null,null,null,null,null,null,null,null,null,null,null,null,null,null,null,null,null,null,10,17,30,37]
[null,"C-7.2 Środki obce",null,null,null,null,null,null,null,null,null,null,null,null,null,null,null,null,null,2,2,2,2]
[]
[null,"Lp.","Oznaczenie/numer umowy/rodzaj zadłużenia (np.. kredyt, pożyczka)",null,null,null,null,null,"Przedmiot/ cel umowy","Rok zaciągnięcia zobowiązań","Kwota zadłużenia","Wykorzystanie środków obcych do finansowania kosztów operacji w okresie realizacji operacji."]
[]
[null,null,null,null,null,null,null,null,null,null,null,"Rok poprzedni","Rok bieżący",{"$f":"'Sekcja C5'!X5","v":2014},{"$f":"'Sekcja C5'!Y5","v":2015},{"$f":"'Sekcja C5'!Z5","v":2016},{"$f":"'Sekcja C5'!AA5","v":2017},{"$f":"'Sekcja C5'!AB5","v":2018}]
[]
[null,1,null,null,null,null,null,null,null,null,{"$f":"SUM(L9,M9,N9,O9,P9,Q9,R9)","v":0}]
[null,2,null,null,null,null,null,null,null,null,{"$f":"SUM(L10,M10,N10,O10,P10,Q10,R10)","v":0}]
[null,null,null,null,null,null,null,null,"Razem",null,{"$f":"SUM(K9:K10)","v":0},0,0,0,0,0,0,0]
[null,"Obsługa zadłużenia w kolejnych latach (kapitał + odsetki)"]
[null,"Lp.","Rok poprzedni",null,null,null,"Rok bieżący",null,"Rok",null,{"$f":"+I13","v":"Rok"},null,{"$f":"+K13","v":"Rok"},null,{"$f":"+M13","v":"Rok"},null,{"$f":"+O13","v":"Rok"}]
[null,null,null,null,null,null,null,null,{"$f":"N7","v":2014},null,{"$f":"O7","v":2015},null,{"$f":"P7","v":2016},null,{"$f":"Q7","v":2017},null,{"$f":"R7","v":2018}]
[null,null,"Kapitał ",null,"Odsetki",null,"Kapitał ","Odsetki","Kapitał ","Odsetki","Kapitał ","Odsetki","Kapitał","Odsetki","Kapitał","Odsetki","Kapitał","Odsetki"]
[null,1]
[null,2]
[null,"Razem",{"$f":"SUM(C16:C17)","v":0},null,{"$f":"SUM(E16:E17)","v":0},null,{"$f":"SUM(G16:G17)","v":0},0,0,0,0,0,0,0,0,0,0,0]
[]
[]
[]
[]
[null,"C-7.3 Leasing"]
[]
[null,"Lp.","Oznaczenie/numer promesy leasingowej",null,null,null,"Przedmiot promesy (umowy) leasingowej",null,null,null,null,"Planowany rok zaciągnięcia zobowiązań",null,"Planowana kwota zadłużenia"]
[]
[]
[]
[null,1]
[null,2]
[null,"Razem",null,null,null,null,null,null,null,null,null,null,null,{"$f":"SUM(N29:N30)","v":0}]
[null,"Obsługa zadłużenia w kolejnych latach (kapitał + odsetki)"]
[null,"Lp.","Rok bieżący",null,null,null,"Rok",null,{"$f":"+G33","v":"Rok"},null,{"$f":"+I33","v":"Rok"},null,{"$f":"+K33","v":"Rok"},null,{"$f":"+M33","v":"Rok"}]
[null,null,null,null,null,null,{"$f":"N7","v":2014},null,{"$f":"O7","v":2015},null,{"$f":"P7","v":2016},null,{"$f":"Q7","v":2017},null,{"$f":"R7","v":2018}]
[null,null,"Kapitał ",null,"Odsetki",null,"Kapitał ","Odsetki","Kapitał ","Odsetki","Kapitał ","Odsetki","Kapitał","Odsetki","Kapitał","Odsetki"]
[null,1]
[null,2]
[null,"Razem",{"$f":"SUM(C36:C37)","v":0},null,{"$f":"SUM(E36:E37)","v":0},null,{"$f":"SUM(G36:G37)","v":0},0,0,0,0,0,0,0,0,0]

{"sheet":"Sekcja D","index":11,"n_rows":19,"n_cols":24,"rows_kept":19,"cut":false,"hidden":false,"merged":[[17,1,17,4],[17,5,17,9],[17,10,17,20],[17,21,17,22],[18,1,18,22],[12,1,12,16],[15,21,15,22],[14,5,14,9],[14,10,14,20],[16,1,16,4],[1,1,2,23],[11,1,11,23],[6,1,6,16],[7,1,7,16],[6,17,6,23],[3,1,3,23],[10,1,10,16],[10,17,10,23],[7,17,7,23],[16,5,16,9],[16,10,16,20],[16,21,16,22],[14,1,14,4],[14,21,14,22],[15,1,15,4],[12,17,12,23],[4,1,5,16],[4,17,5,23],[8,1,8,23],[15,5,15,9],[9,1,9,16],[9,17,9,23],[15,10,15,20],[13,1,13,23]]}
[]
[null,"SEKCJA D. ZATRUDNIENIE"]
[]
[null,"D-1. Dotychczasowy stan zatrudnienia"]
[null,"D.1.1. Średnia arytmetyczna stanu zatrudnienia z okresu ostatnich 12 miesięcy poprzedzających miesiąc złożenia wniosku o przyznanie pomocy (w przeliczeniu na pełne etaty)"]
[]
[null,"D.1.2. Stan zatrudnienia w miesiącu poprzedzającym miesiąc złożenia wniosku o przyznanie pomocy (w przeliczeniu na pełne etaty)"]
[null,"D.1.3. Moment bazowy stanu zatrudnienia (w przeliczeniu na pełne etaty) max[D.1.1; D.1.2].",null,null,null,null,null,null,null,null,null,null,null,null,null,null,null,{"$f":"MAX(R5:X7)","v":0}]
[null,"D-2. Planowana liczba etatów utworzonych w wyniku realizacji operacji"]
[null,"D.2.1. Liczba planowanych do utworzenia miejsc pracy w wyniku realizacji operacji (w przeliczeniu na pełne etaty)"]
[]
[null,"D-3. Planowany stan zatrudnienia"]
[null,"D.3.1. Planowany docelowy stan zatrudnienia osiągnięty w wyniku realizacji operacji (w przeliczeniu na pełne etaty): (D1.3 + D.2.1)",null,null,null,null,null,null,null,null,null,null,null,null,null,null,null,{"$f":"R10+R8","v":0}]
[null,"D-4. Wyszczególnienie nowotworzonych miejsc pracy : należy podać nazwę stanowisk, uzasadnienie utworzenia stanowiska pracy oraz wymiar czasu pracy (np. 1, 1/2, ...)"]
[null,"Stanowisko",null,null,null,"Nazwa stanowiska",null,null,null,null,"Uzasadnienie utworzenia stanowiska",null,null,null,null,null,null,null,null,null,null,null,null,"Wymiar czasu pracy"]
[null,"Stanowisko 1"]
[null,"Stanowisko 2"]
[null,"Stanowisko 3"]
[null,"Razem ",null,null,null,null,null,null,null,null,null,null,null,null,null,null,null,null,null,null,null,null,null,{"$f":"SUM(X16:X18)","v":0}]

{"sheet":"Sekcja E1","index":12,"n_rows":25,"n_cols":20,"rows_kept":25,"cut":false,"hidden":false,"merged":[[24,1,24,13],[24,14,24,18],[24,19,24,23],[19,1,19,13],[19,14,19,18],[23,1,23,13],[23,14,23,18],[23,19,23,23],[21,1,21,13],[21,14,21,18],[2,1,3,23],[22,1,22,13],[22,14,22,18],[22,19,22,23],[18,1,18,13],[18,14,18,18],[18,19,18,23],[15,1,15,13],[15,14,15,18],[15,19,15,23],[21,19,21,23],[19,19,19,23],[20,1,20,13],[20,14,20,18],[20,19,20,23],[16,1,16,13],[16,14,16,18],[16,19,16,23],[17,1,17,13],[17,14,17,18],[17,19,17,23],[13,1,13,13],[13,14,13,18],[13,19,13,23],[14,1,14,13],[14,14,14,18],[14,19,14,23],[11,1,11,13],[11,14,11,18],[11,19,11,23],[12,1,12,13],[12,14,12,18],[12,19,12,23],[9,1,9,13],[9,14,9,18],[9,19,9,23],[10,1,10,13],[10,14,10,18],[10,19,10,23],[7,1,7,13],[7,14,7,18],[7,19,7,23],[8,1,8,13],[8,14,8,18],[8,19,8,23],[4,1,4,23],[5,1,5,13],[5,14,5,18],[5,19,5,23],[6,1,6,13],[6,14,6,18],[6,19,6,23]]}
[]
[]
[null,"SEKCJA E. ANALIZA EKONOMICZNO-FINANSOWA"]
[]
[null,"E-1. Bilans przedsiębiorstwa"]
[null,"AKTYWA ",null,null,null,null,null,null,null,null,null,null,null,null,"Stan na koniec roku poprzedzającego rok złożenia wniosku ( w zł)",null,null,null,null,"Stan na koniec roku docelowego (w zł)"]
[null,"1.1. MAJĄTEK TRWAŁY OGÓŁEM (A+B+C+D+E+F)",null,null,null,null,null,null,null,null,null,null,null,null,{"$f":"SUM(O8:O13)","v":0},null,null,null,null,{"$f":"SUM(T8:T13)","v":0}]
[null,"A) grunty"]
[null,"B) budynki i budowle"]
[null,"C) maszyny, urządzenia, wyposażenie"]
[null,"D) inwestycje rozpoczęte"]
[null,"E) udziały, akcje, obligacje, finansowy"]
[null,"F) pozostały majątek trwały"]
[null,"1.2. MAJĄTEK OBROTOWY OGÓŁEM (G+H+I+J)",null,null,null,null,null,null,null,null,null,null,null,null,{"$f":"SUM(O15:O18)","v":0},null,null,null,null,{"$f":"SUM(T15:T18)","v":0}]
[null,"G) należności"]
[null,"H) zapasy"]
[null,"I) środki pieniężne ogółem"]
[null,"J) pozostały majątek obrotowy"]
[null,"AKTYWA OGÓŁEM",null,null,null,null,null,null,null,null,null,null,null,null,{"$f":"SUM(O7,O14)","v":0},null,null,null,null,{"$f":"SUM(T7,T14)","v":0}]
[null,"PASYWA",null,null,null,null,null,null,null,null,null,null,null,null,"Stan na koniec roku poprzedzającego rok złożenia wniosku",null,null,null,null,"Stan na koniec roku docelowego"]
[null,"1.3. Kapitał własny (wraz z zyskiem/stratą netto)"]
[null,"1.4 Kapitał obcy (K+L)",null,null,null,null,null,null,null,null,null,null,null,null,{"$f":"SUM(O23:O24)","v":0},null,null,null,null,{"$f":"SUM(T23:T24)","v":0}]
[null,"K) zobowiązania długoterminowe"]
[null,"L) zobowiązania krótkoterminowe"]
[null,"PASYWA OGÓŁEM",null,null,null,null,null,null,null,null,null,null,null,null,{"$f":"SUM(O21,O22)","v":0},null,null,null,null,{"$f":"SUM(T21,T22)","v":0}]

{"sheet":"Sekcja F","index":13,"n_rows":24,"n_cols":12,"rows_kept":24,"cut":false,"hidden":false,"merged":[[19,1,19,5],[22,1,22,5],[11,1,11,5],[1,1,1,11],[2,1,2,11],[4,2,4,5],[4,1,6,1],[6,2,6,5],[5,2,5,5],[3,1,3,5],[7,1,7,11],[8,1,8,5],[9,1,9,5],[23,1,23,5],[16,1,16,5],[10,1,10,5],[15,1,15,5],[18,1,18,5],[13,1,13,5],[14,1,14,5]]}
[]
[null,"SEKCJA F. PLANOWANE PRZYCHODY I KOSZTY ZWIĄZANE Z OPERACJĄ GENERUJĄCĄ PRZYCHODY/OSZCZĘDNOŚCI"]
[null,"F-1. Prognoza przychodów w wyniku realizacji operacji generujących przychody/oszczędności"]
[null,"Wyszczególnienie",null,null,null,null,{"$f":"'Sekcja C5'!W5","v":2013},{"$f":"'Sekcja C5'!X5","v":2014},{"$f":"'Sekcja C5'!Y5","v":2015},{"$f":"'Sekcja C5'!Z5","v":2016},{"$f":"'Sekcja C5'!AA5","v":2017},{"$f":"'Sekcja C5'!AB5","v":2018}]
[null," Przychody","Przychody ze sprzedaży produktów/usług/towarów",null,null,null,0,0,0,0,0,0]
[null,null,"Pozostałe przychody"]
[null,null,"Razem",null,null,null,0,0,0,0,0,0]
[null,"F-2. Prognoza kosztów działalności objętej operacją generującą przychody/oszczędności"]
[null,"Wyszczególnienie",null,null,null,null,{"$f":"G4","v":2013},2014,2015,2016,2017,2018]
[null,"*amortyzacja"]
[null,"zużycie materiałów/surowców"]
[null,"zakup towarów "]
[null,"podatki i opłaty"]
[null,"ubezpieczenia majątkowe"]
[null,"koszty finansowe: odsetki od kredytów",null,null,null,null,0,0,0,0,0,0]
[null,"koszty finansowe: odsetki leasingowe",null,null,null,null,0,0,0,0,0,0]
[null,"pozostałe koszty finansowe"]
[null,"paliwo"]
[null,"usługi obce (w tym m.in. naprawy i konserwacje maszyn, budynków, energia el., opał, gaz, woda, ścieki, odpady, telekomunikacja)"]
[null,"wynagrodzenia"]
[null,"ubezpieczenia społeczne i inne świadczenia"]
[null,"dzierżawy, czynsze i opłaty leasingowe"]
[null,"pozostałe koszty"]
[null,"Razem",null,null,null,null,0,0,0,0,0,0]

{"sheet":"Sekcja G","index":14,"n_rows":32,"n_cols":12,"rows_kept":32,"cut":false,"hidden":false,"merged":[[7,1,7,2],[7,3,7,4],[2,0,2,9],[3,0,4,0],[3,1,3,2],[4,1,4,2],[3,3,3,4],[4,3,4,4],[5,1,5,2],[5,3,5,4],[6,1,6,2],[6,3,6,4],[13,1,13,2],[13,3,13,4],[8,1,8,2],[8,3,8,4],[9,1,9,2],[9,3,9,4],[10,1,10,2],[10,3,10,4],[26,0,26,9],[15,0,15,4],[19,0,19,9],[20,0,20,9],[22,0,22,9],[15,5,15,7],[23,0,23,9],[25,0,25,9],[11,1,11,2],[11,3,11,4],[12,1,12,2],[12,3,12,4],[14,1,14,2],[14,3,14,4]]}
[]
[]
["G. Zaktualizowana wartość netto"]
["Specyfikacja","Rok poprzedni",null,"Rok bieżący",null,{"$f":"'Sekcja C5'!X5","v":2014},{"$f":"'Sekcja C5'!Y5","v":2015},{"$f":"'Sekcja C5'!Z5","v":2016},{"$f":"'Sekcja C5'!AA5","v":2017},{"$f":"'Sekcja C5'!AB5","v":2018}]
[null,"X",null,"No",null,"N1","N2","N3","N4","N5"]
["1. Inwestycje dotyczące operacji",0,null,0,null,0,0,0,0,0]
["2. Przychody z operacji",0,null,{"$f":"'Sekcja F'!G7","v":0},null,{"$f":"'Sekcja F'!H7","v":0},{"$f":"'Sekcja F'!I7","v":0},{"$f":"'Sekcja F'!J7","v":0},{"$f":"'Sekcja F'!K7","v":0},{"$f":"'Sekcja F'!L7","v":0}]
["3. Koszty działalności objętej operacją",0,null,{"$f":"'Sekcja F'!G24","v":0},null,{"$f":"'Sekcja F'!H24","v":0},{"$f":"'Sekcja F'!I24","v":0},{"$f":"'Sekcja F'!J24","v":0},{"$f":"'Sekcja F'!K24","v":0},{"$f":"'Sekcja F'!L24","v":0}]
["4. Dochód brutto (poz.2-poz.3)",{"$f":"B7-B8","v":0},null,{"$f":"D7-D8","v":0},null,{"$f":"F7-F8","v":0},{"$f":"G7-G8","v":0},{"$f":"H7-H8","v":0},{"$f":"I7-I8","v":0},{"$f":"J7-J8","v":0}]
["5. Podatek dochodowy wg stopy 18%"]
["6. Dochód netto (poz.4 - poz.5)",null,null,{"$f":"D9-D10","v":0},null,{"$f":"F9-F10","v":0},{"$f":"G9-G10","v":0},{"$f":"H9-H10","v":0},{"$f":"I9-I10","v":0},{"$f":"J9-J10","v":0}]
["7. Wartość końcowa ",null,null,null,null,null,null,null,null,{"$f":"'Sekcja C5'!R11+'Sekcja C5'!R17+'Sekcja C6'!H21-SUM('Sekcja G'!D13:J13)","v":0}]
["8.Amortyzacja",null,null,{"$f":"'Sekcja F'!G10","v":0},null,{"$f":"'Sekcja F'!H10","v":0},{"$f":"'Sekcja F'!I10","v":0},{"$f":"'Sekcja F'!J10","v":0},{"$f":"'Sekcja F'!K10","v":0},{"$f":"'Sekcja F'!L10","v":0}]
["9. Saldo bieżące (poz.6+poz.7+poz.8-poz.1)",null,null,{"$f":"D11+D13-D6","v":0},null,{"$f":"F11+F13-F6","v":0},{"$f":"G11+G13-G6","v":0},{"$f":"H11+H13-H6","v":0},{"$f":"I11+I13-I6","v":0},{"$f":"J11+J13+J12-J6","v":0}]
["10. Stopa dyskonta (……...%)/czynnik dyskontujący","X",null,1,null,{"$f":"1/(1+L16)^1","v":0.95987713572662692},{"$f":"1/(1+L16)^2","v":0.92136411569075338},{"$f":"1/(1+L16)^3","v":0.88439634833053693},{"$f":"1/(1+L16)^4","v":0.84891183368260392},{"$f":"1/(1+L16)^5","v":0.8148510593996966}]
["*NPV",null,null,null,null,{"$f":"D14*D15+F14*F15+G14*G15+H14*H15+I14*I15+J14*J15","v":0},null,null,null,null,null,4.1799999999999997E-2]
[]
[]
["Objaśnienia do tabeli:"]
["Poz.1. Inwestycje dotyczące operacji - należy wpisać nakłady bezpośrednio związane z operacją z podziałem na poszczególne lata."]
["Poz.2. Przychody ze sprzedaży to planowane przychody ze sprzedaży produktów, usług, materiałów i towarów - sekcja F-1."]
["Poz.4. Dochód brutto to wartość sumy wierszy 2 i 3, przy czym wartość wiersza 3 jest wartością ujemną."]
["Poz.5. Wysokość podatku dochodowego jest wyliczana zgodnie ze stawką %, którą wnioskodawca podaje w tym punkcie"]
["Poz.7. Wartość końcowa jest wykazywana jedynie dla roku docelowego jako suma kosztów kwalifikowalnych bez kosztów ogólnych oraz niekwalifikowalnych (towarzyszących), pomniejszonych o amortyzację  (w przypadku wnioskodawców niedokonujących odpisów amortyzacyjnych, liczoną liniowo uśrednioną 8% stopą amortyzacji dla pełnych lat włącznie z rokiem poniesienia kosztu, przykład w instrukcji."]
["Poz.8. Amortyzacja - wypełniają podmioty dokonujące odpisów amortyzacyjnych (zgodnie z sekcją F-2)."]
["Poz.10. Stopa dyskonta ( r ) - stała stopa z dnia złożenia Wniosku o dofinansowanie operacji."]
["Zaktualizowana wartość netto (NPV) to suma zaktualizowanych wartości salda bieżącego dla wszystkich lat prognozy, wg poniższego wzoru:"]
[]
[]
[null,null,null,null,"N1",null,"N2",null,"N5"]
["NPV = ",null,"No   +   ",null,"-----------","       +"," ------------","   ……    + "," ------------",">   0"]
[null,null,null,null,"1 + r",null,"(1+r)2",null,"(1+r)5"]

{"sheet":"Sekcja H","index":15,"n_rows":46,"n_cols":31,"rows_kept":46,"cut":false,"hidden":false,"merged":[[45,1,45,11],[45,16,45,29],[39,1,39,11],[39,12,39,14],[41,8,41,12],[39,18,39,20],[44,1,44,11],[44,16,44,29],[39,27,39,29],[39,24,39,26],[38,18,38,20],[37,27,37,29],[38,27,38,29],[37,21,37,23],[38,24,38,26],[37,18,37,20],[39,21,39,23],[38,1,38,11],[37,24,37,26],[38,12,38,14],[39,15,39,17],[34,27,34,29],[38,15,38,17],[35,18,35,20],[36,24,36,26],[35,21,35,23],[37,1,37,11],[37,12,37,14],[37,15,37,17],[35,27,35,29],[36,27,36,29],[35,1,35,11],[35,12,35,14],[35,15,35,17],[35,24,35,26],[36,15,36,17],[36,18,36,20],[34,15,34,17],[34,18,34,20],[34,1,34,11],[34,12,34,14],[36,1,36,11],[36,12,36,14],[33,27,33,29],[32,27,32,29],[34,21,34,23],[33,24,33,26],[32,24,32,26],[34,24,34,26],[33,15,33,17],[33,18,33,20],[32,15,32,17],[32,18,32,20],[31,18,31,20],[32,1,32,11],[32,12,32,14],[33,1,33,11],[33,12,33,14],[30,15,30,17],[30,18,30,20],[29,1,29,11],[30,1,30,11],[30,12,30,14],[31,1,31,11],[31,12,31,14],[31,15,31,17],[28,1,28,11],[28,12,28,14],[28,15,28,17],[29,12,29,14],[29,15,29,17],[29,18,29,20],[28,18,28,20],[24,18,24,20],[25,12,25,14],[25,15,25,17],[26,24,26,26],[26,18,26,20],[26,12,26,14],[26,15,26,17],[23,1,23,11],[24,1,24,11],[24,12,24,14],[24,15,24,17],[21,27,21,29],[28,24,28,26],[23,24,23,26],[26,27,26,29],[26,1,26,11],[26,21,26,23],[20,1,20,11],[25,18,25,20],[25,27,25,29],[25,24,25,26],[23,27,23,29],[22,1,22,11],[22,12,22,14],[22,15,22,17],[22,18,22,20],[25,21,25,23],[19,27,19,29],[18,1,18,11],[23,12,23,14],[23,15,23,17],[23,18,23,20],[20,27,20,29],[21,1,21,11],[21,12,21,14],[21,15,21,17],[21,18,21,20],[17,27,17,29],[16,1,16,11],[20,12,20,14],[20,15,20,17],[20,18,20,20],[18,27,18,29],[19,1,19,11],[19,12,19,14],[19,15,19,17],[19,18,19,20],[15,27,15,29],[14,1,14,11],[18,12,18,14],[18,15,18,17],[18,18,18,20],[16,27,16,29],[17,1,17,11],[17,12,17,14],[17,15,17,17],[17,18,17,20],[13,27,13,29],[12,1,12,11],[16,12,16,14],[16,15,16,17],[16,18,16,20],[14,27,14,29],[15,1,15,11],[15,12,15,14],[15,15,15,17],[15,18,15,20],[10,1,10,11],[14,12,14,14],[14,15,14,17],[14,18,14,20],[13,1,13,11],[13,12,13,14],[13,15,13,17],[13,18,13,20],[11,1,11,11],[11,12,11,14],[11,18,11,20],[12,12,12,14],[12,15,12,17],[12,18,12,20],[10,27,10,29],[11,27,11,29],[12,27,12,29],[10,12,10,14],[5,1,5,11],[5,12,5,14],[6,21,6,23],[7,15,7,17],[7,18,7,20],[6,1,6,11],[6,12,6,14],[6,15,6,17],[7,1,7,11],[6,18,6,20],[2,27,2,29],[2,21,2,23],[10,15,10,17],[10,24,10,26],[4,21,4,23],[5,21,5,23],[4,24,4,26],[5,24,5,26],[9,15,9,17],[2,24,2,26],[5,27,5,29],[6,27,6,29],[9,27,9,29],[6,24,6,26],[7,24,7,26],[9,24,9,26],[15,21,15,23],[16,21,16,23],[1,1,1,32],[5,15,5,17],[5,18,5,20],[4,1,4,11],[4,12,4,14],[4,15,4,17],[4,18,4,20],[4,27,4,29],[14,21,14,23],[9,21,9,23],[10,21,10,23],[11,21,11,23],[12,21,12,23],[13,21,13,23],[29,21,29,23],[38,21,38,23],[36,21,36,23],[32,21,32,23],[33,21,33,23],[30,21,30,23],[31,21,31,23],[13,24,13,26],[14,24,14,26],[15,24,15,26],[16,24,16,26],[17,24,17,26],[18,24,18,26],[17,21,17,23],[18,21,18,23],[23,21,23,23],[24,21,24,23],[19,21,19,23],[20,21,20,23],[22,21,22,23],[21,21,21,23],[29,24,29,26],[30,24,30,26],[31,24,31,26],[19,24,19,26],[20,24,20,26],[21,24,21,26],[22,24,22,26],[24,24,24,26],[11,30,11,32],[8,1,8,32],[7,21,7,23],[10,18,10,20],[7,27,7,29],[9,1,9,11],[9,12,9,14],[11,24,11,26],[9,18,9,20],[11,15,11,17],[5,30,5,32],[6,30,6,32],[12,24,12,26],[2,1,2,11],[2,12,2,14],[2,15,2,17],[2,18,2,20],[3,1,3,32],[2,30,2,32],[4,30,4,32],[24,30,24,32],[7,12,7,14],[12,30,12,32],[13,30,13,32],[14,30,14,32],[15,30,15,32],[16,30,16,32],[7,30,7,32],[9,30,9,32],[10,30,10,32],[17,30,17,32],[18,30,18,32],[19,30,19,32],[20,30,20,32],[39,30,39,32],[29,30,29,32],[30,30,30,32],[31,30,31,32],[32,30,32,32],[21,30,21,32],[33,30,33,32],[38,30,38,32],[24,27,24,29],[25,30,25,32],[22,30,22,32],[23,30,23,32],[22,27,22,29],[29,27,29,29],[28,27,28,29],[30,27,30,29],[31,27,31,29],[34,30,34,32],[35,30,35,32],[36,30,36,32],[37,30,37,32],[25,1,25,11],[26,30,26,32],[28,30,28,32],[27,1,27,32],[28,21,28,23]]}
[]
[null,"H. RACHUNEK PRZEPŁYWÓW PIENIĘŻNYCH OBEJMUJĄCY CAŁĄ DZIAŁALNOŚĆ PRZEDSIĘBIORSTWA"]
[null,"Wyszczególnienie",null,null,null,null,null,null,null,null,null,null,{"$f":"P3-1","v":2012},null,null,{"$f":"'Sekcja C5'!W5","v":2013},null,null,{"$f":"P3+1","v":2014},null,null,{"$f":"S3+1","v":2015},null,null,{"$f":"V3+1","v":2016},null,null,{"$f":"Y3+1","v":2017},null,null,{"$f":"AB3+1","v":2018}]
[null,"I. Wpływy :"]
[null,"1. Sprzedaż produktów, towarów i usług"]
[null,"2. Inne wpływy"]
[null,"3. Zwrot podatku VAT"]
[null,"I. Wpływy ogółem [I.1+I.2+I.3]",null,null,null,null,null,null,null,null,null,null,{"$f":"SUM(M5:O7)","v":0},null,null,{"$f":"SUM(P5:R7)","v":0},null,null,{"$f":"SUM(S5:U7)","v":0},null,null,{"$f":"SUM(V5:X7)","v":0},null,null,{"$f":"SUM(Y5:AA7)","v":0},null,null,{"$f":"SUM(AB5:AD7)","v":0},null,null,{"$f":"SUM(AE5:AG7)","v":0}]
[null,"II. Wydatki :"]
[null,"1. Zakup surowców, materiałów/towarów"]
[null,"2. Wynagrodzenia pracowników"]
[null,"3. Narzuty na wynagrodzenie dla pracowników"]
[null,"4. Naprawa, konserwacja maszyn i budynków"]
[null,"5. Paliwa"]
[null,"6. Energia elektryczna, opał i gaz"]
[]
[null,"7. Woda i ścieki, wywóz odpadów"]
[]
[null,"8. Usługi obce"]
[null,"9. Telekomunikacja"]
[null,"10. Dzierżawy, czynsze i opłaty leasingowe"]
[]
[null,"11. Ubezpieczenia majątkowe"]
[null,"12. Inne podatki i opłaty (gruntowy, opłaty drogowe,..)"]
[null,"13. Odprowadzenie podatku VAT"]
[null,"14. Inne wydatki"]
[null,"II. Razem wydatki [II.1+II.2+...+II.14]",null,null,null,null,null,null,null,null,null,null,{"$f":"SUM(M10:O26)","v":0},null,null,{"$f":"SUM(P10:R26)","v":0},null,null,{"$f":"SUM(S10:U26)","v":0},null,null,{"$f":"SUM(V10:X26)","v":0},null,null,{"$f":"SUM(Y10:AA26)","v":0},null,null,{"$f":"SUM(AB10:AD26)","v":0},null,null,{"$f":"SUM(AE10:AG26)","v":0}]
[null,"III. Przepływy kapitałowe"]
[null,"1. Zaciągnięte kredyty"]
[null,"2. Sprzedaż majątku trwałego"]
[null,"3. Spłaty kredytów"]
[null,"4. Wydatki inwestycyjne"]
[null,"5. Wypłata dywidendy"]
[null,"6. Wpływy z posiadanych udziałów, akcji, obligacji"]
[null,"7. Podatek dochodowy"]
[null,"III. Przepływy kapitałowe [III.1+III.2-III.3-III.4-III.5+III.6-III.7]",null,null,null,null,null,null,null,null,null,null,{"$f":"M29+M30-M31-M32-M33+M34-M35","v":0},null,null,{"$f":"P29+P30-P31-P32-P33+P34-P35","v":0},null,null,{"$f":"S29+S30-S31-S32-S33+S34-S35","v":0},null,null,{"$f":"V29+V30-V31-V32-V33+V34-V35","v":0},null,null,{"$f":"Y29+Y30-Y31-Y32-Y33+Y34-Y35","v":0},null,null,{"$f":"AB29+AB30-AB31-AB32-AB33+AB34-AB35","v":0},null,null,{"$f":"AE29+AE30-AE31-AE32-AE33+AE34-AE35","v":0}]
[null,"IV. Kwota dotacji"]
[null,"V. PRZEPŁYWY NETTO [I-II+III+IV]",null,null,null,null,null,null,null,null,null,null,{"$f":"M8-M27+M36+M37","v":0},null,null,{"$f":"P8-P27+P36+P37","v":0},null,null,{"$f":"S8-S27+S36+S37","v":0},null,null,{"$f":"V8-V27+V36+V37","v":0},null,null,{"$f":"Y8-Y27+Y36+Y37","v":0},null,null,{"$f":"AB8-AB27+AB36+AB37","v":0},null,null,{"$f":"AE8-AE27+AE36+AE37","v":0}]
[null,"VI. Bilans gotówki : stan początkowy",null,null,null,null,null,null,null,null,null,null,null,null,null,{"$f":"M40","v":0},null,null,{"$f":"P40","v":0},null,null,{"$f":"S40","v":0},null,null,{"$f":"V40","v":0},null,null,{"$f":"Y40","v":0},null,null,{"$f":"AB40","v":0}]
[null,"stan końcowy [V+VI.]",null,null,null,null,null,null,null,null,null,null,{"$f":"M39+M38","v":0},null,null,{"$f":"P39+P38","v":0},null,null,{"$f":"S39+S38","v":0},null,null,{"$f":"V39+V38","v":0},null,null,{"$f":"Y39+Y38","v":0},null,null,{"$f":"AB39+AB38","v":0},null,null,{"$f":"AE39+AE38","v":0}]
[]
[]
[]
[]
[]
[null,"Miejscowość i data",null,null,null,null,null,null,null,null,null,null,null,null,null,null,"Podpis osoby upoważnionej"]

{"sheet":"Zalacznik nr 1","index":16,"n_rows":24,"n_cols":12,"rows_kept":24,"cut":false,"hidden":false,"merged":[[22,1,22,5],[23,1,23,5],[15,1,15,5],[16,1,16,5],[17,1,17,5],[18,1,18,5],[8,1,8,5],[9,1,9,5],[10,1,10,5],[11,1,11,5],[13,1,13,5],[14,1,14,5],[12,1,12,5],[7,1,7,11],[1,1,1,11],[2,1,2,11],[3,1,3,5],[4,1,6,1],[4,2,4,5],[5,2,5,5],[6,2,6,5]]}
[]
[null,"ZAŁĄCZNIK NR 1 - SEKCJA FI PLANOWANE PRZYCHODY I KOSZTY ZWIĄZANE Z OPERACJĄ OPARTĄ NA ROZWIĄZANIU OSZCZĘDNOŚCIOWYM"]
[null,"F-1. Prognoza przychodów w wyniku realizacji operacji o charakterze oszczędnościowym"]
[null,"Wyszczególnienie",null,null,null,null,{"$f":"'Sekcja C5'!W5","v":2013},{"$f":"'Sekcja C5'!X5","v":2014},{"$f":"'Sekcja C5'!Y5","v":2015},{"$f":"'Sekcja C5'!Z5","v":2016},{"$f":"'Sekcja C5'!AA5","v":2017},{"$f":"'Sekcja C5'!AB5","v":2018}]
[null," Przychody","Przychody ze sprzedaży produktów/usług/towarów",null,null,null,{"$f":"IF(G4>2000,'Sekcja C4'!O11,\"\")","v":0},{"$f":"IF(H4>2000,'Sekcja C4'!U11,\"\")","v":0},{"$f":"IF(I4>2000,'Sekcja C4'!AA11,\"\")","v":0},{"$f":"IF(J4>2000,'Sekcja C4'!O24,\"\")","v":0},{"$f":"IF(K4>2000,'Sekcja C4'!U24,\"\")","v":0},{"$f":"IF(L4>2000,'Sekcja C4'!AA24,\"\")","v":0}]
[null,null,"Pozostałe przychody"]
[null,null,"Razem",null,null,null,{"$f":"SUM(G5,G6)","v":0},0,0,0,0,0]
[null,"F-2. Prognoza kosztów działalności objętej operacją o charakterze oszczędnościowym"]
[null,"Wyszczególnienie",null,null,null,null,{"$f":"G4","v":2013},2014,2015,2016,2017,2018]
[null,"*amortyzacja"]
[null,"zużycie materiałów/surowców"]
[null,"zakup towarów"]
[null,"podatki i opłaty"]
[null,"ubezpieczenia majątkowe"]
[null,"koszty finansowe: odsetki od kredytów",null,null,null,null,{"$f":"'Sekcja C7.2 i C7.3'!H18","v":0},{"$f":"'Sekcja C7.2 i C7.3'!J18","v":0},{"$f":"'Sekcja C7.2 i C7.3'!L18","v":0},{"$f":"'Sekcja C7.2 i C7.3'!N18","v":0},{"$f":"'Sekcja C7.2 i C7.3'!P18","v":0},{"$f":"'Sekcja C7.2 i C7.3'!R18","v":0}]
[null,"koszty finansowe: odsetki leasingowe",null,null,null,null,{"$f":"'Sekcja C7.2 i C7.3'!E38","v":0},{"$f":"'Sekcja C7.2 i C7.3'!H38","v":0},{"$f":"'Sekcja C7.2 i C7.3'!J38","v":0},{"$f":"'Sekcja C7.2 i C7.3'!L38","v":0},{"$f":"'Sekcja C7.2 i C7.3'!N38","v":0},{"$f":"'Sekcja C7.2 i C7.3'!P38","v":0}]
[null,"pozostałe koszty finansowe"]
[null,"paliwo"]
[null,"usługi obce (w tym m.in. naprawy i konerwacje maszyn, budynków, energia el., opał, gaz, woda, ścieki, odpady, telekomunikacja)"]
[null,"wynagrodzenia"]
[null,"ubezpieczenia społeczne i inne majątkowe"]
[null,"dzieżawy, czynsze i opłaty leasingowe"]
[null,"pozostałe koszty"]
[null,"Razem",null,null,null,null,{"$f":"SUM(G10:G23)","v":0},0,0,0,0,0]

{"sheet":"Zalacznik nr 2","index":17,"n_rows":24,"n_cols":12,"rows_kept":24,"cut":false,"hidden":false,"merged":[[22,1,22,5],[23,1,23,5],[15,1,15,5],[16,1,16,5],[17,1,17,5],[18,1,18,5],[8,1,8,5],[9,1,9,5],[10,1,10,5],[11,1,11,5],[13,1,13,5],[14,1,14,5],[12,1,12,5],[7,1,7,11],[1,1,1,11],[2,1,2,11],[3,1,3,5],[4,1,6,1],[4,2,4,5],[5,2,5,5],[6,2,6,5]]}
[]
[null,"ZAŁĄCZNIK NR 2 - SEKCJA FII PLANOWANE PRZYCHODY I KOSZTY OPARTE NA OBECNYCH ROZWIĄZANIACH"]
[null,"F-1. Prognoza przychodów oparta ne obecnych rozwiązaniach"]
[null,"Wyszczególnienie",null,null,null,null,{"$f":"'Sekcja C5'!W5","v":2013},{"$f":"'Sekcja C5'!X5","v":2014},{"$f":"'Sekcja C5'!Y5","v":2015},{"$f":"'Sekcja C5'!Z5","v":2016},{"$f":"'Sekcja C5'!AA5","v":2017},{"$f":"'Sekcja C5'!AB5","v":2018}]
[null," Przychody","Przychody ze sprzedaży produktów/usług/towarów"]
[null,null,"Pozostałe przychody"]
[null,null,"Razem",null,null,null,{"$f":"SUM(G5,G6)","v":0},0,0,0,0,0]
[null,"F-2. Prognoza kosztów działalności oparta na dotychczasowych rozwiązaniach"]
[null,"Wyszczególnienie",null,null,null,null,{"$f":"G4","v":2013},2014,2015,2016,2017,2018]
[null,"*amortyzacja"]
[null,"zużycie materiałów/surowców"]
[null,"zakup towarów "]
[null,"podatki i opłaty"]
[null,"ubezpieczenia majątkowe"]
[null,"koszty finansowe: odsetki od kredytów"]
[null,"koszty finansowe: odsetki leasingowe"]
[null,"pozostałe odsetki finansowe"]
[null,"paliwo"]
[null,"usługi obce (w tym m.in. naprawy i konserwacje maszyn, budynków, energia el., opał, gaz, woda, ścieki, odpady, telekomunikacja)"]
[null,"wynagrodzenia"]
[null,"ubezpieczenia społeczne i inne świadczenia"]
[null,"dzierżawy, czynsze i olaty leasingowe"]
[null,"pozostałe koszty"]
[null,"Razem",null,null,null,null,{"$f":"SUM(G10:G23)","v":0},0,0,0,0,0]